bitfinex/quotes_SOLUSD_20241116
["timestamp","ask_amount","ask_price","bid_price","bid_amount"]
[1731726501644,0.37740861,219.69,219.62,24.82697336]
[1731726501837,0.37740861,219.69,219.65,0.34465462]
[1731726504254,0.37740861,219.69,219.62,11.3832]
[1731726504460,9.17440735,219.69,219.62,15.9363]
[1731726504755,0.37740861,219.69,219.63,8.89067336]
[1731726505259,0.37740861,219.69,219.68,8.79699874]
[1731726505434,0.37740861,219.69,219.66,8.79699874]
[1731726505938,0.37740861,219.69,219.67,0.12549]
[1731726509060,13.22550735,219.73,219.67,0.12549]
[1731726509743,8.79699874,219.74,219.69,0.21916462]
[1731726509953,8.79699874,219.74,219.68,15.398]
[1731726511037,13.34779874,219.74,219.68,15.398]
[1731726513845,0.04325732,219.78,219.71,0.09367462]
[1731726514055,8.84025606,219.78,219.71,0.09367462]
[1731726515033,8.79699874,219.76,219.71,0.09367462]
[1731726515556,0.04325732,219.78,219.71,8.89067336]
[1731726515731,0.04325732,219.78,219.72,0.12549]
[1731726515931,0.04325732,219.78,219.73,0.09367462]
[1731726516350,0.04325732,219.78,219.73,8.89067336]
[1731726516551,0.04325732,219.78,219.74,0.12549]
[1731726518760,0.04325732,219.78,219.75,0.09367462]
[1731726520071,8.84025606,219.78,219.73,0.12549]
[1731726520254,8.79699874,219.76,219.73,0.12549]
[1731726520454,0.04325732,219.78,219.73,0.12549]
[1731726520455,8.79699874,219.77,219.73,0.12549]
[1731726521282,8.79699874,219.77,219.71,0.21916462]
[1731726521575,8.84025606,219.78,219.73,4.551]
[1731726521778,0.04325732,219.78,219.74,0.34465462]
[1731726522981,0.04325732,219.78,219.74,4.89525462]
[1731726523506,0.04325732,219.78,219.74,16.05309]
[1731726524063,0.04325732,219.78,219.75,0.21916462]
[1731726524553,0.04325732,219.78,219.77,0.21916462]
[1731726524765,0.04325732,219.78,219.77,0.34465462]
[1731726525970,0.04325732,219.78,219.77,13.69185336]
[1731726526255,0.04325732,219.78,219.77,4.89485462]
[1731726526681,0.04325732,219.78,219.77,13.69185336]
[1731726528088,0.04325732,219.78,219.77,37.46873736]
[1731726528279,0.04325732,219.78,219.77,38.37854204]
[1731726528776,0.04325732,219.78,219.77,58.37854204]
[1731726529384,0.04325732,219.78,219.77,57.46873736]
[1731726529881,0.38931588,219.78,219.77,57.46873736]
[1731726530080,0.38931588,219.78,219.77,68.94423736]
[1731726530582,0.38931588,219.78,219.77,60.04723862]
[1731726530761,0.38931588,219.78,219.77,68.84423736]
[1731726531484,0.38931588,219.78,219.77,60.04723862]
[1731726531660,0.38931588,219.78,219.77,68.84423736]
[1731726534382,0.38931588,219.78,219.77,60.04723862]
[1731726534879,0.38931588,219.78,219.77,68.84423736]
[1731726535081,0.38931588,219.78,219.77,45.06735336]
[1731726535290,0.38931588,219.78,219.77,60.04723862]
[1731726536662,0.38931588,219.78,219.77,36.27035462]
[1731726537888,0.38931588,219.78,219.77,68.84423736]
[1731726544980,29.0,219.9,219.82,0.21916462]
[1731726545190,8.79699874,219.87,219.83,0.25098]
[1731726545776,8.79699874,219.85,219.83,0.25098]
[1731726545970,29.0,219.9,219.85,0.25098]
[1731726546170,29.0,219.9,219.86,0.09367462]
[1731726546370,37.79699874,219.9,219.86,0.09367462]
[1731726547196,8.79699874,219.88,219.86,0.09367462]
[1731726547406,29.0,219.9,219.84,15.9206]
[1731726547407,8.79699874,219.87,219.84,15.9206]
[1731726547580,8.79699874,219.85,219.84,11.49739]
[1731726547980,33.5476,219.9,219.79,70.0]
[1731726548286,8.79699874,219.84,219.8,15.9234]
[1731726548679,8.79699874,219.85,219.81,0.09367462]
[1731726549082,39.73569496,219.89,219.83,0.12549]
[1731726549280,8.79699874,219.84,219.83,0.12549]
[1731726551601,8.79699874,219.84,219.81,0.12549]
[1731726551782,4.5477,219.89,219.81,0.25098]
[1731726551977,8.79699874,219.85,219.81,0.25098]
[1731726552999,8.79699874,219.88,219.85,0.12549]
[1731726554602,29.0,219.9,219.85,0.12549]
[1731726554603,8.79699874,219.86,219.85,0.12549]
[1731726554779,8.79699874,219.86,219.82,15.9219]
[1731726554981,8.79699874,219.84,219.83,0.12549]
[1731726555995,8.79699874,219.86,219.84,0.21916462]
[1731726556198,8.79699874,219.88,219.85,0.12549]
[1731726556379,8.79699874,219.88,219.86,0.12549]
[1731726557200,29.0,219.9,219.87,0.12549]
[1731726557401,29.0,219.9,219.89,9.04797874]
[1731726557586,29.0,219.9,219.89,9.14165336]
[1731726558885,29.0,219.9,219.89,13.68935336]
[1731726559290,29.0,219.9,219.89,37.46623736]
[1731726559506,29.0,219.9,219.89,4.89235462]
[1731726559693,29.0,219.9,219.89,4.79868]
[1731726560007,29.0,219.9,219.87,0.25098]
[1731726560695,29.0,219.9,219.88,0.09367462]
[1731726561981,29.0,219.9,219.88,4.64147462]
[1731726562185,29.0,219.9,219.89,0.25098]
[1731726563900,29.0,219.9,219.89,0.34465462]
[1731726565107,29.0,219.9,219.89,118.14563736]
[1731726565299,29.0,219.9,219.89,15.57175462]
[1731726566703,29.0,219.9,219.89,0.34465462]
[1731726567206,14.51932432,220.0,219.92,70.0]
[1731726567406,4.5456,219.99,219.93,0.25098]
[1731726567608,13.34259874,219.99,219.93,0.25098]
[1731726568412,13.34259874,219.99,219.94,0.09367462]
[1731726568619,13.34259874,219.99,219.95,0.12549]
[1731726569489,8.79699874,219.97,219.95,0.12549]
[1731726569694,13.34309874,219.97,219.91,0.25098]
[1731726570210,8.79699874,219.95,219.91,0.12549]
[1731726570508,4.5461,219.97,219.91,0.12549]
[1731726570509,8.79699874,219.93,219.91,0.12549]
[1731726571509,8.79699874,219.93,219.88,0.12549]
[1731726572006,8.79699874,219.93,219.86,4.79918]
[1731726572400,8.79699874,219.93,219.86,13.59617874]
[1731726573013,15.8314,219.97,219.87,0.12549]
[1731726573313,4.5462,219.96,219.88,0.09367462]
[1731726573488,13.34319874,219.96,219.88,0.09367462]
[1731726573810,14.51932432,220.0,219.93,8.79699874]
[1731726573997,19.06492432,220.0,219.95,8.79699874]
[1731726574508,19.06492432,220.0,219.94,8.79699874]
[1731726574912,27.86192306,220.0,219.91,0.25098]
[1731726575222,27.86192306,220.0,219.92,8.79699874]
[1731726575387,27.86192306,220.0,219.93,8.79699874]
[1731726575592,19.06492432,220.0,219.93,8.79699874]
[1731726575888,8.79699874,219.99,219.92,8.79699874]
[1731726576093,4.5458,219.98,219.92,8.79699874]
[1731726576416,4.5458,219.98,219.91,8.79699874]
[1731726576790,13.34279874,219.98,219.9,8.92248874]
[1731726576990,13.34279874,219.98,219.88,0.25098]
[1731726577213,13.34279874,219.98,219.91,8.79699874]
[1731726577908,13.34279874,219.98,219.88,0.25098]
[1731726578116,4.5462,219.96,219.9,8.79699874]
[1731726578915,4.5462,219.96,219.88,0.25098]
[1731726579121,4.5462,219.96,219.9,8.79699874]
[1731726579515,8.79699874,219.98,219.91,8.79699874]
[1731726579901,8.79699874,219.98,219.9,8.79699874]
[1731726580215,4.5456,219.99,219.91,8.79699874]
[1731726580418,8.79699874,219.98,219.91,8.79699874]
[1731726581009,4.546,219.97,219.91,8.79699874]
[1731726582016,8.79699874,219.97,219.9,8.79699874]
[1731726582402,4.5456,219.99,219.91,8.79699874]
[1731726582705,13.34259874,219.99,219.91,8.79699874]
[1731726583007,13.34259874,219.99,219.88,0.25098]
[1731726583008,8.79699874,219.98,219.9,8.79699874]
[1731726583206,4.546,219.97,219.92,8.79699874]
[1731726583411,4.546,219.97,219.91,8.79699874]
[1731726583720,4.546,219.97,219.9,8.79699874]
[1731726584014,8.79699874,219.98,219.88,4.79888]
[1731726584015,1.43132686,220.0,219.99,0.12549]
[1731726584199,8.79699874,220.14,220.05,0.25098]
[1731726584399,15.61211588,220.11,220.05,0.12549]
[1731726585695,15.61211588,220.11,220.04,0.25098]
[1731726585913,15.61211588,220.11,220.04,9.04797874]
[1731726586298,15.61211588,220.11,220.06,0.12549]
[1731726586503,15.61211588,220.11,220.04,8.92248874]
[1731726586702,0.38931588,220.11,220.1,9.14165336]
[1731726587513,0.38931588,220.11,220.1,0.25098]
[1731726588407,0.38931588,220.11,220.1,0.12549]
[1731726589916,0.38931588,220.11,220.09,13.61450922]
[1731726590520,0.38931588,220.11,220.1,0.34465462]
[1731726591057,0.38931588,220.11,220.1,0.12549]
[1731726591222,0.38931588,220.11,220.1,0.25098]
[1731726591424,4.5401,220.26,220.15,0.25098]
[1731726591616,4.5401,220.26,220.18,13.61450922]
[1731726593927,4.5401,220.26,220.18,13.82450922]
[1731726595504,4.5401,220.26,220.2,13.61450922]
[1731726597121,4.5401,220.26,220.2,13.82450922]
[1731726598823,4.5401,220.26,220.2,13.61450922]
[1731726601426,18.15460922,220.26,220.19,13.61450922]
[1731726602310,4.5401,220.26,220.21,13.61450922]
[1731726602535,4.5401,220.26,220.2,13.61450922]
[1731726602728,4.5401,220.26,220.19,13.61450922]
[1731726602944,18.15460922,220.26,220.19,13.61450922]
[1731726603938,4.5405,220.24,220.18,13.61450922]
[1731726604316,4.5405,220.24,220.19,13.61450922]
[1731726606815,4.5405,220.24,220.2,13.61450922]
[1731726607221,4.5405,220.24,220.21,13.61450922]
[1731726607443,4.5405,220.24,220.2,13.61450922]
[1731726607835,16.4611,220.27,220.2,13.61450922]
[1731726608037,4.54,220.26,220.2,13.61450922]
[1731726608348,4.54,220.26,220.15,12.8742032]
[1731726608349,18.15450922,220.26,220.18,13.61450922]
[1731726608636,18.15450922,220.26,220.15,17.4165032]
[1731726608946,13.24576845,220.26,220.19,8.70576845]
[1731726609532,8.70576845,220.25,220.18,8.70576845]
[1731726609845,8.70576845,220.24,220.17,8.70576845]
[1731726610044,8.70576845,220.25,220.18,8.70576845]
[1731726610224,13.24576845,220.26,220.15,1.26765374]
[1731726610423,13.24576845,220.26,220.19,8.70576845]
[1731726610718,4.54,220.26,220.2,8.70576845]
[1731726610927,13.24576845,220.26,220.16,1.26765374]
[1731726611242,8.70576845,220.24,220.15,5.80995374]
[1731726611540,4.54,220.26,220.19,8.70576845]
[1731726611932,4.04,220.26,220.19,8.70576845]
[1731726612932,13.24676845,220.22,220.14,1.26765374]
[1731726613243,4.541,220.22,220.16,8.70576845]
[1731726613830,13.24676845,220.22,220.15,8.70576845]
[1731726614128,4.541,220.22,220.16,8.70576845]
[1731726614341,11.3503,220.26,220.16,8.70576845]
[1731726614342,8.70576845,220.24,220.16,8.70576845]
[1731726616740,15.8903,220.26,220.13,1.26765374]
[1731726616741,8.70576845,220.18,220.13,1.26765374]
[1731726616943,8.70576845,220.2,220.13,8.70576845]
[1731726617350,8.70576845,220.21,220.14,8.70576845]
[1731726617740,8.70576845,220.21,220.13,8.70576845]
[1731726618138,8.70576845,220.2,220.1,1.26765374]
[1731726618450,8.70576845,220.19,220.12,8.70576845]
[1731726618641,8.70576845,220.19,220.1,1.26765374]
[1731726618642,8.70576845,220.16,220.1,1.26765374]
[1731726618950,8.70576845,220.11,220.06,1.26765374]
[1731726619245,8.70576845,220.1,220.04,1.26765374]
[1731726619439,8.70576845,220.11,220.05,1.26765374]
[1731726619750,8.70576845,220.11,220.04,1.26765374]
[1731726620151,8.70576845,220.09,220.04,1.26765374]
[1731726620343,8.70576845,220.09,220.01,8.70576845]
[1731726620645,8.70576845,220.09,220.02,8.70576845]
[1731726620843,4.5438,220.08,220.02,8.70576845]
[1731726622229,13.24956845,220.08,220.01,8.70576845]
[1731726623044,4.5438,220.08,220.01,8.70576845]
[1731726623246,17.669,220.15,219.97,15.911]
[1731726623247,17.669,220.15,220.04,8.70576845]
[1731726623453,8.70576845,220.13,220.05,8.70576845]
[1731726623635,8.70576845,220.12,220.05,8.70576845]
[1731726623957,8.70576845,220.09,220.01,8.70576845]
[1731726624137,8.70576845,220.09,220.02,8.70576845]
[1731726624460,4.5438,220.08,220.02,8.70576845]
[1731726624752,13.24956845,220.08,219.97,15.9111]
[1731726624956,13.24956845,220.08,220.0,8.70576845]
[1731726628757,8.70576845,220.04,219.93,11.3672]
[1731726628968,8.70576845,220.0,219.93,11.3672]
[1731726629168,8.70576845,220.01,219.93,20.07296845]
[1731726629358,8.70576845,220.01,219.94,8.70576845]
[1731726630635,6.4753,220.06,219.93,20.07296845]
[1731726630636,4.5454,220.0,219.93,20.07296845]
[1731726632154,8.70576845,220.0,219.93,11.3672]
[1731726632734,8.70576845,219.99,219.93,11.3672]
[1731726633137,8.70576845,219.98,219.9,8.70576845]
[1731726633338,8.70576845,219.96,219.89,8.70576845]
[1731726633573,8.70576845,219.96,219.88,24.62306845]
[1731726634361,13.25206845,219.96,219.88,24.62306845]
[1731726634551,8.70576845,219.93,219.86,4.5481]
[1731726634732,8.70576845,219.93,219.85,0.09367462]
[1731726634733,8.70576845,219.93,219.85,13.34794307]
[1731726634939,8.70576845,219.92,219.85,4.64217462]
[1731726635447,4.5463,219.96,219.9,8.70576845]
[1731726635646,6.51,219.97,219.91,8.70576845]
[1731726635947,19.76186845,219.97,219.9,8.70576845]
[1731726636550,11.0561,219.97,219.91,8.70576845]
[1731726637269,19.76186845,219.97,219.9,8.70576845]
[1731726637845,19.52186845,219.97,219.9,8.70576845]
[1731726639055,8.70576845,219.94,219.86,15.9191]
[1731726639255,8.70576845,219.95,219.88,8.70576845]
[1731726639568,10.8161,219.97,219.86,15.9191]
[1731726639569,8.70576845,219.96,219.89,8.70576845]
[1731726640374,13.25216845,219.95,219.88,8.70576845]
[1731726640673,8.70576845,219.92,219.87,4.548]
[1731726640847,13.25216845,219.95,219.88,8.70576845]
[1731726641255,8.70576845,219.89,219.85,0.09367462]
[1731726641850,8.70576845,219.92,219.85,0.09367462]
[1731726642971,4.5473,219.91,219.85,0.09367462]
[1731726644347,8.70576845,219.94,219.87,8.70576845]
[1731726644568,4.5464,219.95,219.89,8.70576845]
[1731726645479,4.5464,219.95,219.88,8.70576845]
[1731726645771,4.5464,219.95,219.89,8.70576845]
[1731726646679,4.5464,219.95,219.88,8.70576845]
[1731726647971,13.25216845,219.95,219.88,8.70576845]
[1731726650078,4.5464,219.95,219.88,8.70576845]
[1731726653176,4.5461,219.97,219.92,8.70576845]
[1731726653590,4.5461,219.97,219.93,8.70576845]
[1731726653785,19.9308,219.99,219.93,8.70576845]
[1731726654283,28.63656845,219.99,219.92,8.70576845]
[1731726656078,4.5458,219.99,219.96,8.70576845]
[1731726656282,33.3917,220.07,219.98,8.70576845]
[1731726656472,4.5444,220.05,220.01,8.70576845]
[1731726657381,4.5444,220.05,220.0,8.70576845]
[1731726658378,4.5444,220.05,219.91,15.9155]
[1731726658379,4.5444,220.05,219.99,8.70576845]
[1731726658564,13.25016845,220.05,219.92,15.9148]
[1731726658883,8.70576845,220.04,219.96,8.70576845]
[1731726659063,8.70576845,220.04,219.97,8.70576845]
[1731726659874,4.5448,220.03,219.97,8.70576845]
[1731726661964,4.5444,220.05,219.97,8.70576845]
[1731726663366,4.5444,220.05,219.99,8.70576845]
[1731726666664,13.25016845,220.05,219.97,8.70576845]
[1731726667061,13.25016845,220.05,219.98,8.70576845]
[1731726668085,13.25016845,220.05,219.97,8.70576845]
[1731726669378,4.5448,220.03,219.97,8.70576845]
[1731726669984,4.5448,220.03,219.96,8.70576845]
[1731726671766,8.70576845,220.0,219.9,26.9925]
[1731726671968,8.70576845,220.0,219.93,8.70576845]
[1731726672388,8.70576845,219.99,219.92,8.70576845]
[1731726673389,8.70576845,219.98,219.91,8.70576845]
[1731726674000,8.70576845,219.94,219.88,8.70576845]
[1731726674178,8.70576845,219.96,219.88,8.70576845]
[1731726674996,13.25216845,219.95,219.85,31.16697462]
[1731726675288,13.25216845,219.95,219.88,8.70576845]
[1731726675894,4.5464,219.95,219.88,8.70576845]
[1731726677094,13.25216845,219.95,219.88,8.70576845]
[1731726678090,8.70576845,219.94,219.87,8.70576845]
[1731726679197,8.70576845,219.95,219.88,8.70576845]
[1731726679386,8.70576845,219.94,219.85,11.46467462]
[1731726679591,8.70576845,219.94,219.87,8.70576845]
[1731726679799,8.70576845,219.93,219.86,8.70576845]
[1731726680396,13.25196845,219.96,219.89,8.70576845]
[1731726680693,13.25266845,219.93,219.87,8.70576845]
[1731726681688,8.70576845,219.95,219.88,8.70576845]
[1731726682600,8.70576845,219.96,219.89,8.70576845]
[1731726682786,4.546,219.97,219.92,8.70576845]
[1731726682985,4.546,219.97,219.87,4.548]
[1731726682986,4.5457,219.99,219.94,8.70576845]
[1731726683285,4.5448,220.03,219.97,8.70576845]
[1731726683486,4.5448,220.03,219.9,15.1539]
[1731726683693,4.5448,220.03,219.91,0.25098]
[1731726683896,4.5448,220.03,219.97,8.70576845]
[1731726684079,8.70576845,220.02,219.95,8.70576845]
[1731726684583,8.70576845,220.0,219.93,8.70576845]
[1731726684907,4.5456,220.0,219.95,8.70576845]
[1731726687213,4.5456,220.0,219.93,13.25256845]
[1731726688011,4.5456,220.0,219.94,8.70576845]
[1731726688652,8.70576845,219.99,219.91,4.5471]
[1731726688815,8.70576845,219.99,219.92,8.70576845]
[1731726689487,13.25136845,220.0,219.93,8.70576845]
[1731726690391,8.70576845,219.99,219.92,8.70576845]
[1731726690704,8.70576845,219.97,219.89,8.70576845]
[1731726691209,8.70576845,219.97,219.9,8.70576845]
[1731726691690,4.5462,219.96,219.9,8.70576845]
[1731726694405,4.5462,219.96,219.91,8.70576845]
[1731726695524,4.5462,219.96,219.86,31.3708]
[1731726695695,13.25196845,219.96,219.89,8.70576845]
[1731726697898,8.70576845,219.94,219.88,13.25356845]
[1731726698392,8.70576845,219.94,219.87,8.70576845]
[1731726698595,13.25246845,219.94,219.87,8.70576845]
[1731726700019,4.5467,219.94,219.87,8.70576845]
[1731726700220,8.70576845,219.93,219.87,8.70576845]
[1731726702206,13.25246845,219.94,219.87,8.70576845]
[1731726704722,4.5467,219.94,219.9,8.70576845]
[1731726705504,4.5467,219.94,219.89,8.70576845]
[1731726706228,4.5454,220.0,219.93,8.70576845]
[1731726706415,4.5454,220.0,219.94,8.70576845]
[1731726706731,13.25116845,220.0,219.93,8.70576845]
[1731726708227,8.70576845,219.99,219.92,8.70576845]
[1731726708526,4.5458,219.98,219.92,8.70576845]
[1731726709328,4.5458,219.98,219.91,8.70576845]
[1731726710723,8.70576845,219.97,219.91,8.70576845]
[1731726711027,8.70576845,219.95,219.87,11.3703]
[1731726711331,8.70576845,219.95,219.87,20.07606845]
[1731726712231,4.5466,219.94,219.87,20.07606845]
[1731726714013,8.70576845,219.91,219.85,0.09367462]
[1731726714815,8.70576845,219.92,219.85,8.79944307]
[1731726715201,4.5473,219.91,219.85,8.79944307]
[1731726715625,4.5469,219.93,219.87,8.70576845]
[1731726718811,13.25266845,219.93,219.86,8.70576845]
[1731726719218,8.70576845,219.92,219.85,11.46497462]
[1731726719627,4.5469,219.93,219.85,11.46497462]
[1731726719819,8.70576845,219.91,219.85,11.46497462]
[1731726720007,8.70576845,219.91,219.85,0.09367462]
[1731726721532,8.70576845,219.89,219.85,0.09367462]
[1731726721710,8.70576845,219.88,219.85,0.09367462]
[1731726722331,8.70576845,219.9,219.85,0.09367462]
[1731726723031,4.5477,219.89,219.85,0.09367462]
[1731726724624,8.70576845,219.89,219.85,0.09367462]
[1731726725534,4.5466,219.94,219.88,8.70576845]
[1731726725736,4.5466,219.94,219.85,11.46497462]
[1731726725737,6.138,219.95,219.89,8.70576845]
[1731726725914,20.5418,219.96,219.9,8.70576845]
[1731726726838,8.70576845,219.95,219.88,8.70576845]
[1731726727319,8.70576845,219.94,219.87,8.70576845]
[1731726728421,8.70576845,219.93,219.85,16.01337462]
[1731726728729,8.70576845,219.93,219.86,8.70576845]
[1731726729031,13.25276845,219.93,219.86,8.70576845]
[1731726730835,4.547,219.93,219.86,8.70576845]
[1731726732146,8.70576845,219.92,219.85,20.17074307]
[1731726732512,4.5473,219.91,219.85,20.17074307]
[1731726733335,4.547,219.93,219.88,8.70576845]
[1731726734124,4.547,219.93,219.87,8.70576845]
[1731726734719,15.9954,219.96,219.87,8.70576845]
[1731726734915,13.25216845,219.95,219.88,8.70576845]
[1731726735120,8.70576845,219.93,219.86,13.25406845]
[1731726735647,8.70576845,219.91,219.85,11.46497462]
[1731726736448,8.70576845,219.89,219.85,0.09367462]
[1731726736833,4.5476,219.9,219.85,0.09367462]
[1731726739940,13.25336845,219.9,219.85,0.09367462]
[1731726740334,13.25356845,219.89,219.85,0.09367462]
[1731726740943,4.5478,219.89,219.85,0.09367462]
[1731726742640,8.70576845,219.91,219.85,0.09367462]
[1731726742832,13.25306845,219.91,219.85,0.09367462]
[1731726744350,4.5473,219.91,219.85,8.79944307]
[1731726745240,13.25306845,219.91,219.85,0.09367462]
[1731726745846,4.5464,219.95,219.86,8.70576845]
[1731726746045,8.70576845,219.94,219.86,8.70576845]
[1731726746231,4.5464,219.95,219.86,8.70576845]
[1731726746430,8.70576845,219.94,219.86,8.70576845]
[1731726746629,4.5464,219.95,219.89,8.70576845]
[1731726747034,8.70576845,219.94,219.85,16.01347462]
[1731726747251,8.70576845,219.94,219.86,8.70576845]
[1731726747639,8.70576845,219.94,219.85,16.01347462]
[1731726747640,8.70576845,219.94,219.85,11.46497462]
[1731726747835,8.70576845,219.93,219.86,8.70576845]
[1731726748672,8.70576845,219.93,219.85,16.01347462]
[1731726748948,4.5471,219.92,219.85,11.46497462]
[1731726749734,4.5471,219.92,219.85,16.01347462]
[1731726749930,4.5462,219.96,219.86,8.70576845]
[1731726750243,8.70576845,219.95,219.86,8.70576845]
[1731726750957,13.25236845,219.95,219.87,4.5481]
[1731726751549,0.46112699,219.97,219.92,8.70576845]
[1731726751859,0.46112699,219.97,219.94,8.70576845]
[1731726752152,0.46112699,219.97,219.93,8.70576845]
[1731726754351,0.46112699,219.97,219.96,122.82730707]
[1731726754568,4.5433,220.11,219.97,0.09367462]
[1731726754855,8.70576845,220.07,219.96,0.25098]
[1731726755036,15.4135,220.1,219.96,0.25098]
[1731726755037,8.70576845,220.06,219.96,0.25098]
[1731726755234,8.70576845,220.06,219.98,8.70576845]
[1731726756031,21.6359,220.1,220.0,8.70576845]
[1731726756032,13.24986845,220.07,220.0,8.70576845]
[1731726757048,8.70576845,220.06,219.97,4.5459]
[1731726757231,4.5435,220.09,220.02,8.70576845]
[1731726757438,8.70576845,220.08,220.01,8.70576845]
[1731726757636,8.70576845,220.07,219.99,8.70576845]
[1731726758139,8.70576845,220.08,220.0,8.70576845]
[1731726758663,4.544,220.07,220.0,8.70576845]
[1731726761044,4.5435,220.09,220.0,8.70576845]
[1731726761244,8.70576845,220.07,220.0,8.70576845]
[1731726762361,4.5429,220.12,220.02,8.70576845]
[1731726762564,8.70576845,220.11,220.02,8.70576845]
[1731726763468,13.24866845,220.12,220.04,8.70576845]
[1731726765473,4.5429,220.12,220.04,8.70576845]
[1731726765656,13.24866845,220.12,220.04,8.70576845]
[1731726766554,4.5429,220.12,220.04,8.70576845]
[1731726766754,15.4135,220.13,220.04,8.70576845]
[1731726766755,4.5433,220.1,220.04,8.70576845]
[1731726768267,8.70576845,220.07,219.99,11.3641]
[1731726768574,8.70576845,220.07,219.99,20.06986845]
[1731726768749,8.70576845,220.08,220.0,8.70576845]
[1731726769352,4.63657462,220.12,220.01,8.70576845]
[1731726769547,8.70576845,220.08,220.0,8.70576845]
[1731726770948,4.544,220.07,220.0,8.70576845]
[1731726771459,8.70576845,220.05,219.99,15.9097]
[1731726771854,8.70576845,220.06,219.99,15.9097]
[1731726772168,8.70576845,220.05,219.99,11.3641]
[1731726772367,8.70576845,220.06,219.99,11.3641]
[1731726772556,4.5433,220.1,219.99,11.3641]
[1731726772751,8.70576845,220.06,219.99,11.3641]
[1731726773658,4.5433,220.1,219.99,11.3641]
[1731726773969,8.70576845,220.07,220.0,8.70576845]
[1731726774265,8.70576845,220.01,219.95,11.3661]
[1731726774567,8.70576845,220.03,219.97,1.07]
[1731726775158,8.70576845,220.03,219.95,24.61826845]
[1731726775361,4.545,220.02,219.95,24.61826845]
[1731726775560,4.545,220.02,219.95,15.9125]
[1731726775872,4.545,220.02,219.95,24.61826845]
[1731726776460,4.545,220.02,219.95,20.07186845]
[1731726777280,8.70576845,220.01,219.95,11.3661]
[1731726778780,13.25106845,220.01,219.95,11.3661]
[1731726779080,4.5453,220.01,219.95,20.07186845]
[1731726779268,4.5453,220.01,219.96,8.70576845]
[1731726779574,4.5453,220.01,219.95,20.07186845]
[1731726780267,4.5453,220.01,219.95,11.3661]
[1731726781258,4.5453,220.01,219.95,20.07186845]
[1731726782564,0.09367462,220.08,219.95,20.07186845]
[1731726782759,8.70576845,220.03,219.96,8.70576845]
[1731726783082,8.70576845,220.04,219.97,8.70576845]
[1731726783249,4.544,220.07,219.98,8.70576845]
[1731726783453,8.70576845,220.06,219.99,8.70576845]
[1731726783871,8.70576845,220.06,219.96,20.25098]
[1731726784079,8.70576845,220.05,219.98,8.70576845]
[1731726784465,13.25026845,220.05,219.98,8.70576845]
[1731726784868,13.25026845,220.05,219.98,13.25156845]
[1731726788264,8.70576845,220.04,219.96,4.5462]
[1731726788467,8.70576845,220.01,219.95,11.3661]
[1731726788678,4.5445,220.05,219.95,15.9125]
[1731726788872,4.5445,220.05,219.99,8.70576845]
[1731726794179,13.25026845,220.05,219.98,8.70576845]
[1731726796091,13.25026845,220.05,219.98,13.25156845]
[1731726797578,13.25026845,220.05,219.95,11.3661]
[1731726797773,13.25026845,220.05,219.98,8.70576845]
[1731726799376,8.70576845,220.04,219.95,15.9124]
[1731726799596,4.5445,220.05,219.95,11.3661]
[1731726799597,8.70576845,220.01,219.95,11.3661]
[1731726799899,8.70576845,220.0,219.91,11.3682]
[1731726800071,8.70576845,219.99,219.92,8.70576845]
[1731726800699,8.70576845,219.99,219.91,20.07396845]
[1731726800989,13.25146845,219.99,219.91,24.62126845]
[1731726801275,8.70576845,219.97,219.89,20.0263]
[1731726801489,8.70576845,219.96,219.89,28.73206845]
[1731726801803,8.70576845,219.97,219.9,8.70576845]
[1731726802093,8.70576845,219.96,219.89,13.25326845]
[1731726802600,13.25196845,219.96,219.89,13.25326845]
[1731726803376,185.476884,220.04,219.9,8.70576845]
[1731726803377,20.0,220.03,219.9,8.70576845]
[1731726803581,8.70576845,219.98,219.9,8.70576845]
[1731726804203,24.5448,220.03,219.91,8.70576845]
[1731726804383,8.70576845,219.98,219.89,15.9168]
[1731726804585,8.70576845,219.96,219.89,15.9168]
[1731726804897,8.70576845,219.95,219.89,15.9168]
[1731726805276,8.70576845,219.96,219.89,24.62256845]
[1731726805487,13.25206845,219.96,219.89,15.9168]
[1731726805673,8.70576845,219.95,219.89,11.3693]
[1731726806790,13.25236845,219.95,219.89,11.3693]
[1731726809685,8.70576845,219.98,219.91,8.70576845]
[1731726810001,4.5452,220.01,219.9,8.70576845]
[1731726810197,8.70576845,219.97,219.9,8.70576845]
[1731726810573,13.25196845,219.97,219.9,8.70576845]
[1731726812503,13.25196845,219.97,219.9,13.25316845]
[1731726816181,13.25196845,219.97,219.89,11.3693]
[1731726816602,13.25196845,219.97,219.89,15.917]
[1731726817104,8.70576845,219.96,219.89,11.3693]
[1731726818203,8.70576845,219.96,219.89,15.917]